fUSD/lending_fUSD_20260420
["ID","MTS","AMOUNT","RATE_DAILY","PERIOD"]
[420840444,1776616761360,500.0,0.0003287,120]
[420840445,1776616761429,500.0,0.0003287,120]
[420840446,1776616790418,499.54,0.0003287,120]
[420840447,1776616902115,644.89,0.00032876,120]
[420840448,1776616911929,260.0,9.863e-05,2]
[420840449,1776616962631,500.0,0.0003287,120]
[420840450,1776616963323,500.0,0.0003287,120]
[420840451,1776616963776,500.0,0.0003287,120]
[420840452,1776616964230,500.0,0.0003287,120]
[420840453,1776616964616,500.0,0.0003287,120]
[420840454,1776616965093,500.0,0.0003287,120]
[420840455,1776616965479,500.0,0.0003287,120]
[420840456,1776616965961,500.0,0.0003287,120]
[420840457,1776616966324,500.0,0.0003287,120]
[420840458,1776616966722,500.0,0.0003287,120]
[420840459,1776616967193,500.0,0.0003287,120]
[420840460,1776616977133,290.6,0.0003287,120]
[420840461,1776617064956,1804.99,0.00032877,120]
[420840462,1776617172638,2926.0,0.00032877,120]
[420840463,1776617255442,3000.0,0.00032877,120]
[420840464,1776617267426,1015.85,0.00032877,120]
[420840465,1776617276726,260.0,9.863e-05,2]
[420840466,1776617316846,505.1,0.00030411,120]
[420840470,1776617368932,-300.0,0.00010925,2]
[420840471,1776617369111,-9140.01,0.00010926,2]
[420840472,1776617370549,-10000.01,0.00010926,2]
[420840473,1776617375818,2000.0,0.00032877,120]
[420840474,1776617377231,3000.0,0.00032877,120]
[420840477,1776617432043,-1200.0,0.00010925,2]
[420840478,1776617432054,-52075.72837863,0.00010926,2]
[420840479,1776617432065,-28121.80162137,0.00010926,2]
[420840480,1776617432075,-3240.0,0.00010959,2]
[420840481,1776617432084,-600.0,0.00010966,2]
[420840482,1776617432093,-600.0,0.00010966,2]
[420840483,1776617432103,-2500.0,0.00010972,2]
[420840484,1776617432112,-2500.0,0.00010972,2]
[420840485,1776617432121,-2500.0,0.00010972,2]
[420840486,1776617432132,-2500.0,0.00010972,2]
[420840487,1776617432142,-600.0,0.00010976,2]
[420840488,1776617432151,-4816.21380309,0.00011,2]
[420840489,1776617432162,-21663.54619691,0.00011,2]
[420840490,1776617432172,-11187.25277345,0.00011,2]
[420840491,1776617432186,-15292.50722655,0.00011,2]
[420840492,1776617432197,-578.20924309,0.0001101,2]
[420840495,1776617432213,-1500.0,0.00011041,2]
[420840497,1776617432227,-1600.0,0.00011194,2]
[420840499,1776617432236,-2000.0,0.00011199,2]
[420840501,1776617432246,-512.16,0.000112,2]
[420840502,1776617432255,-1281.24,0.00011246,2]
[420840554,1776617432899,-526.49413208,0.00011797,2]
[420840555,1776617432954,-500.0,0.00011797,2]
[420840556,1776617432964,-500.0,0.00011797,2]
[420840557,1776617432974,-500.0,0.00011797,2]
[420840558,1776617432983,-500.0,0.00011797,2]
[420840559,1776617432993,-500.0,0.00011797,2]
[420840560,1776617433002,-500.0,0.00011797,2]
[420840561,1776617433012,-500.0,0.00011797,2]
[420840562,1776617433021,-500.0,0.00011797,2]
[420840563,1776617433030,-500.0,0.00011797,2]
[420840564,1776617433042,-500.0,0.00011797,2]
[420840565,1776617433051,-500.0,0.00011797,2]
[420840566,1776617433060,-500.0,0.00011797,2]
[420840567,1776617433069,-500.0,0.00011797,2]
[420840568,1776617433079,-500.0,0.00011797,2]
[420840569,1776617433088,-500.0,0.00011797,2]
[420840570,1776617433097,-500.0,0.00011797,2]
[420840571,1776617433106,-500.0,0.00011797,2]
[420840572,1776617433115,-500.0,0.00011797,2]
[420840573,1776617433125,-500.0,0.00011797,2]
[420840574,1776617433134,-500.0,0.00011797,2]
[420840575,1776617433143,-500.0,0.00011797,2]
[420840576,1776617433153,-500.0,0.00011797,2]
[420840577,1776617433162,-500.0,0.00011797,2]
[420840578,1776617433171,-500.0,0.00011797,2]
[420840579,1776617433185,-500.0,0.00011797,2]
[420840580,1776617433194,-500.0,0.00011797,2]
[420840581,1776617433204,-500.0,0.00011797,2]
[420840582,1776617433214,-500.0,0.00011797,2]
[420840583,1776617433223,-500.0,0.00011797,2]
[420840584,1776617433232,-500.0,0.00011797,2]
[420840585,1776617433242,-500.0,0.00011797,2]
[420840586,1776617433252,-500.0,0.00011797,2]
[420840587,1776617433262,-500.0,0.00011797,2]
[420840588,1776617433273,-500.0,0.00011797,2]
[420840589,1776617433284,-500.0,0.00011797,2]
[420840590,1776617433294,-500.0,0.00011797,2]
[420840591,1776617433304,-453.98107176,0.00011797,2]
[420840592,1776617433314,-500.0,0.00011797,2]
[420840593,1776617433323,-500.0,0.00011797,2]
[420840594,1776617433332,-500.0,0.00011797,2]
[420840595,1776617433342,-500.0,0.00011797,2]
[420840596,1776617433351,-625.46963956,0.00011797,2]
[420840597,1776617433361,-500.0,0.00011797,2]
[420840598,1776617433371,-500.0,0.00011797,2]
[420840599,1776617433382,-500.0,0.00011797,2]
[420840600,1776617433391,-500.0,0.00011797,2]
[420840601,1776617433402,-500.0,0.00011797,2]
[420840602,1776617433411,-500.0,0.00011797,2]
[420840603,1776617433421,-500.0,0.00011797,2]
[420840604,1776617433431,-500.0,0.00011797,2]
[420840605,1776617433443,-500.0,0.00011797,2]
[420840606,1776617433452,-500.0,0.00011797,2]
[420840607,1776617433462,-500.0,0.00011797,2]
[420840608,1776617433471,-500.0,0.00011797,2]
[420840609,1776617433481,-500.0,0.00011797,2]
[420840610,1776617433491,-500.0,0.00011797,2]
[420840611,1776617433500,-500.0,0.00011797,2]
[420840612,1776617433509,-500.0,0.00011797,2]
[420840613,1776617433519,-173.84471887,0.00011797,2]
[420840614,1776617433529,-500.0,0.00011797,2]
[420840615,1776617433538,-552.98826416,0.00011797,2]
[420840616,1776617433548,-526.49413208,0.00011797,2]
[420840617,1776617433557,-526.49413208,0.00011797,2]
[420840618,1776617433567,-526.49413208,0.00011797,2]
[420840619,1776617433576,-150.03,0.00011799,2]
[420840620,1776617433590,-14588.21731137,0.000118,2]
[420840621,1776617436600,-1254.41808677,0.000118,2]
[420840624,1776617438081,-460.29330452,0.00011546,2]
[420840625,1776617438093,-321.31219432,0.00011546,2]
[420840626,1776617438299,-639.55450116,0.00011546,2]
[420840627,1776617438310,-3803.09509884,0.000118,2]
[420840635,1776617443197,-440.03944352,0.000118,2]
[420840636,1776617443211,-316.54370578,0.000118,2]
[420840637,1776617443353,-41507.3316894,0.000118,2]
[420840650,1776617446453,-522.86313806,0.00011797,2]
[420840651,1776617446463,-2280.05766432,0.000118,2]
[420840652,1776617446473,-129639.2278,0.000118,2]
[420840653,1776617446482,-571.0,0.00011867,5]
[420840654,1776617446491,-460.0,0.00011867,5]
[420840655,1776617446500,-300.0,0.000119,4]
[420840657,1776617446510,-5000.0,0.000119,2]
[420840658,1776617446522,-716.0,0.000119,5]
[420840659,1776617446531,-200.0,0.00011904,2]
[420840660,1776617446540,-250.0,0.00011934,2]
[420840661,1776617446550,-250.0,0.00011934,2]
[420840662,1776617446560,-250.0,0.00011934,2]
[420840664,1776617446569,-250.0,0.00011934,2]
[420840665,1776617446578,-431.90323614,0.00011973,2]
[420840666,1776617446588,-331.68287304,0.00011982,2]
[420840667,1776617446597,-2046.11,0.00011986,2]
[420840668,1776617446606,-183.498,0.00011986,2]
[420840669,1776617446616,-1000.0,0.00011993,2]
[420840670,1776617446625,-1000.0,0.00011993,2]
[420840671,1776617446635,-1000.0,0.00011993,2]
[420840672,1776617446644,-1000.0,0.00011993,2]
[420840673,1776617446653,-327.28569,0.00011993,2]
[420840674,1776617455297,6000.0,0.00032877,120]
[420840675,1776617479261,203.873826,0.0002352,120]
[420840676,1776617527038,260.0,9.863e-05,2]
[420840677,1776617573209,500.0,0.00032877,120]
[420840678,1776617574581,500.0,0.00032877,120]
[420840679,1776617578110,500.0,0.00032877,120]
[420840680,1776617578234,500.0,0.00032877,120]
[420840681,1776617582849,1200.0,0.00032876,120]
[420840682,1776617584636,2124.12191053,0.00032877,120]
[420840683,1776617590643,150.0,0.00029957,120]
[420840684,1776617590892,186.0,0.00029957,120]
[420840685,1776617622602,960.8,0.00032192,120]
[420840686,1776617652705,500.0,0.00032877,120]
[420840687,1776617653804,500.0,0.00032877,120]
[420840688,1776617657222,500.0,0.00032877,120]
[420840689,1776617657342,500.0,0.00032877,120]
[420840690,1776617657550,500.0,0.00032877,120]
[420840691,1776617659144,500.0,0.00032877,120]
[420840692,1776617660103,500.0,0.00032877,120]
[420840693,1776617661109,500.0,0.00032877,120]
[420840694,1776617662206,500.0,0.00032877,120]
[420840695,1776617663585,500.0,0.00032877,120]
[420840696,1776617664628,500.0,0.00032877,120]
[420840697,1776617665569,500.0,0.00032877,120]
[420840698,1776617666983,500.0,0.00032877,120]
[420840699,1776617669672,500.0,0.00032877,120]
[420840700,1776617669787,500.0,0.00032877,120]
[420840701,1776617670812,500.0,0.00032877,120]
[420840702,1776617672124,500.0,0.00032877,120]
[420840703,1776617673371,500.0,0.00032877,120]
[420840704,1776617674370,500.0,0.00032877,120]
[420840705,1776617675346,500.0,0.00032877,120]
[420840706,1776617676717,500.0,0.00032877,120]
[420840707,1776617677983,500.0,0.00032877,120]
[420840708,1776617679425,500.0,0.00032877,120]
[420840709,1776617682295,500.0,0.00032877,120]
[420840710,1776617682538,500.0,0.00032877,120]
[420840711,1776617689455,450.0,0.00032877,120]
[420840712,1776617740043,3000.0,0.00032877,120]
[420840713,1776617740331,1004.79,0.00027899,120]
[420840714,1776617740612,1004.79,0.00029799,120]
[420840715,1776617741107,1004.79,0.00029799,120]
[420840716,1776617741358,1004.79,0.00029799,120]
[420840717,1776617741603,1004.79,0.00029799,120]
[420840718,1776617741873,1004.79,0.00029799,120]
[420840719,1776617742115,1004.79,0.00029799,120]
[420840720,1776617742363,1004.79,0.00029799,120]
[420840721,1776617742606,1004.79,0.00029799,120]
[420840722,1776617742834,1004.79,0.00029799,120]
[420840723,1776617743061,1004.79,0.00029799,120]
[420840724,1776617743281,1004.79,0.00029799,120]
[420840726,1776617747480,3000.0,0.00032877,120]
[420840727,1776617749208,1004.79,0.00029799,120]
[420840728,1776617749432,1004.79,0.00029799,120]
[420840729,1776617749653,1004.79,0.00029799,120]
[420840730,1776617750032,1004.79,0.00029799,120]
[420840731,1776617750279,1004.79,0.00029799,120]
[420840732,1776617750537,1004.79,0.00029799,120]
[420840733,1776617750805,1004.90303605,0.00029799,120]
[420840734,1776617762174,4036.07,0.00032877,120]
[420840735,1776617800035,3000.0,0.00032877,120]
[420840736,1776617829742,-1200.0,0.00010824,2]
[420840737,1776617829802,-7340.01,0.00010825,2]
[420840738,1776617878458,5000.01,0.0001,2]
[420840739,1776617878481,5000.01,0.0001,2]
[420840740,1776617878503,10000.01,0.0001,2]
[420840741,1776617878531,486391.29399081,0.0001,2]
[420840742,1776618027458,1426.83646022,0.00032,120]
[420840743,1776618034315,2589.040863,0.00032,120]
[420840744,1776618034450,1899.87150088,0.00032,120]
[420840745,1776618038113,1182.35060423,0.00032,120]
[420840746,1776618038273,1007.94750069,0.00032,120]
[420840747,1776618043536,1362.65926982,0.00032,120]
[420840748,1776618048072,969.09637161,0.00032,120]
[420840749,1776618050088,1092.7147042,0.00032,120]
[420840750,1776618055173,10000.01,0.0001001,2]
[420840751,1776618055196,5000.01,0.0001001,2]
[420840752,1776618055219,5000.01,0.0001001,2]
[420840753,1776618055245,59740.049999,0.0001001,2]
[420840754,1776618062926,183.30073805,0.00032,120]
[420840755,1776618063678,329.38393025,0.00032,120]
[420840756,1776618064900,1212.8236706,0.00032,120]
[420840757,1776618065643,1829.32422147,0.00032,120]
[420840758,1776618066369,1218.64147306,0.00032,120]
[420840759,1776618067614,277.1314079,0.00032876,120]
[420840760,1776618072893,358.9294023,0.0001,2]
[420840761,1776618072939,209.03579245,0.0001,2]
[420840762,1776618078336,2435.99882646,0.00032,120]
[420840763,1776618081714,1316.00661138,0.00032,120]
[420840764,1776618086638,10000.01,0.0001001,2]
[420840765,1776618086661,10000.01,0.0001001,2]
[420840766,1776618086685,10000.01,0.0001001,2]
[420840767,1776618086708,10000.01,0.0001001,2]
[420840768,1776618086730,10000.01,0.0001001,2]
[420840769,1776618086752,10000.01,0.0001001,2]
[420840770,1776618086776,10000.01,0.0001001,2]
[420840771,1776618086800,10000.01,0.0001001,2]
[420840772,1776618086822,10000.01,0.0001001,2]
[420840773,1776618086844,4432.04480525,0.0001001,2]
[420840774,1776618086866,5000.01,0.0001001,2]
[420840775,1776618086889,567.85519475,0.0001001,2]
[420840779,1776618133091,196.55,9.879e-05,2]
[420840780,1776618140128,164.3,8.423e-05,2]
[420840781,1776618142140,714.04,7.22e-05,2]
[420840782,1776618165666,-245.69,0.00010103,2]
[420840783,1776618169681,-206.38,0.00010252,2]
[420840784,1776618177408,160.52,9.991e-05,2]
[420840785,1776618184807,-294.82,0.00010327,2]
[420840786,1776618184838,-283.0,0.00010327,2]
[420840788,1776618209297,401.80788725,0.00032876,120]
[420840789,1776618216485,2659.31901307,0.00032877,120]
[420840790,1776618220246,1552.81,0.00032877,120]
[420840791,1776618220901,834.44,0.0003269,120]
[420840792,1776618232933,150.0,0.00032877,120]
[420840794,1776618307372,-150.0,0.00010391,2]
[420840795,1776618308777,-343.96,0.00010552,2]
[420840796,1776618308801,-286.0,0.00010552,2]
[420840797,1776618308825,-500.0,0.00010724,2]
[420840798,1776618308848,-732.61916458,0.00010725,2]
[420840799,1776618312119,-300.0,0.00010725,2]
[420840800,1776618340298,2403.74,0.00027899,120]
[420840801,1776618340707,2403.74,0.00029799,120]
[420840802,1776618340961,1714.76218571,0.00029799,120]
[420840803,1776618442085,406.91082048,7.22e-05,2]
[420840806,1776618570462,150.0,2.74e-06,2]
[420840807,1776618570495,150.0,2.74e-06,2]
[420840808,1776618570784,150.0,2.74e-06,2]
[420840838,1776618632288,-300.0,0.00010724,2]
[420840840,1776618632298,-288.0,0.00010724,2]
[420840842,1776618632307,-1200.0,0.00010724,2]
[420840844,1776618632317,-485.7666,0.00010724,2]
[420840845,1776618632327,-5195.35113542,0.00010725,2]
[420840846,1776618632336,-2105.08226458,0.00010725,2]
[420840847,1776618632348,-587.36913542,0.00010725,2]
[420840848,1776618632358,-56948.1274,0.00010725,2]
[420840849,1776618632367,-370.2411,0.00010725,2]
[420840850,1776618632376,-659.6352,0.00010725,2]
[420840851,1776618632386,-34187.42757605,0.00010725,2]
[420840929,1776618638516,-500.0,0.00010724,2]
[420840930,1776618638526,-33.60049,0.00010724,2]
[420840941,1776618640557,-196.98321448,0.00010724,2]
[420840942,1776618640566,-247.67626372,0.00010724,2]
[420840943,1776618640576,-306.57476535,0.00010724,2]
[420840944,1776618640585,-266703.79316297,0.00010725,2]
[420840945,1776618640821,-10874.03214022,0.00010725,2]
[420840946,1776618640834,-19081.12410002,0.00010725,2]
[420840947,1776618640845,-8994.11514348,0.00010725,2]
[420840948,1776618640857,-705.60285014,0.00010725,2]
[420840984,1776618643357,-2386.71638121,0.00010725,2]
[420840994,1776618648834,-4161.9446,0.00010725,2]
[420840995,1776618648997,-753.94999883,0.00010725,2]
[420840996,1776618649012,-751.15887,0.00010725,2]
[420840997,1776618649071,-5806.41542565,0.00010725,2]
[420840998,1776618649090,-604.59375567,0.00010725,2]
[420840999,1776618788713,-500.0,0.00010334,2]
[420841000,1776618795028,1350.54,0.00010322,2]
[420841005,1776619389534,205.57,0.00010006,2]
[420841006,1776619453130,4901.89,9.989e-05,2]
[420841007,1776619618268,-1028.61,0.00010071,2]
[420841008,1776619633017,-280.0,0.00010071,2]
[420841009,1776619771148,-212.37485097,0.0001042,2]
[420841010,1776619783244,255.0,0.00012,120]
[420841011,1776619831584,-1787.62514903,0.0001042,2]
[420841012,1776619831594,-160.63,0.00010426,2]
[420841013,1776619831603,-4481.3,0.00010432,2]
[420841014,1776619831614,-150.0,0.0001045,2]
[420841015,1776619831624,-154.58823577,0.0001045,2]
[420841016,1776619831634,-58134.2736483,0.00010506,2]
[420841017,1776619831643,-60820.49262582,0.00010516,2]
[420841038,1776619842376,-7995.53988524,0.00010516,2]
[420841048,1776619842550,-319.38092466,0.00010516,2]
[420841054,1776619845529,-719.9618705,0.00010516,2]
[420841055,1776619845905,-3771.38462326,0.00010516,2]
[420841064,1776619854193,-1500.0,0.0001019,2]
[420841065,1776619899747,5000.01,0.00010036,2]
[420841066,1776619899772,5000.01,0.00010036,2]
[420841068,1776619914182,-4958.44537121,0.00010036,2]
[420841069,1776619914440,-10000.01,0.00010036,2]
[420841070,1776619914585,-10000.01,0.00010036,2]
[420841071,1776619914721,-10000.01,0.00010036,2]
[420841072,1776619914826,-10000.01,0.00010036,2]
[420841073,1776619921856,-1199.79537121,0.00010036,2]
[420841074,1776619921889,-2399.59074242,0.00010036,2]
[420841075,1776619921985,-4799.18148484,0.00010036,2]
[420841076,1776619922044,-401.64703032,0.00010036,2]
[420841077,1776619973551,259.5,0.00012,120]
[420841078,1776619982410,1127.33,0.00010032,2]
[420841084,1776620066852,1600.0,9.851e-05,2]
[420841085,1776620072911,-4049.33,0.00010353,2]
[420841086,1776620073360,-1901.35,0.00010353,2]
[420841087,1776620080708,-500.0,0.00010473,2]
[420841088,1776620080739,-584.10959855,0.00010473,2]
[420841089,1776620080771,-300.0,0.00010515,2]
[420841090,1776620081280,-7231.7908029,0.00010516,2]
[420841091,1776620159874,233.55,0.00012,120]
[420841093,1776620348390,210.19,0.00012,120]
[420841094,1776620384719,150.0,0.00011233,120]
[420841095,1776620445944,5000.01,9.966e-05,2]
[420841096,1776620445969,3588.21,9.966e-05,2]
[420841097,1776620539295,189.17,0.00012,120]
[420841098,1776620552096,200.0,9.747e-05,2]
[420841099,1776620577269,710.58,9.776e-05,2]
[420841100,1776620625757,161.15,9.769e-05,2]
[420841101,1776620725457,170.25,0.00012,120]
[420841125,1776620914042,153.23,0.00012,120]
[420841126,1776620980563,-10000.01,0.00010286,2]
[420841127,1776620980782,-181.23,0.00010286,2]
[420841128,1776620980813,-282.0,0.00010286,2]
[420841129,1776620980844,-152.0,0.00010295,2]
[420841130,1776620980876,-152.0,0.00010295,2]
[420841131,1776620980909,-152.0,0.00010295,2]
[420841132,1776620980945,-152.0,0.00010295,2]
[420841133,1776620980974,-816.96988499,0.00010326,2]
[420841134,1776620981005,-152.0,0.00010356,2]
[420841135,1776620981037,-152.0,0.00010356,2]
[420841136,1776620981070,-152.0,0.00010356,2]
[420841137,1776620981102,-500.0,0.00010415,2]
[420841138,1776620981133,-1200.0,0.00010421,2]
[420841139,1776620981372,-1911.61023002,0.00010422,2]
[420841140,1776620986743,-10000.01,0.00010422,2]
[420841141,1776620986858,-10000.01,0.00010422,2]
[420841142,1776620992556,226.74,9.874e-05,2]
[420841143,1776620999379,176.36,9.622e-05,2]
[420841149,1776621031695,-18725.1331,0.00010322,2]
[420841150,1776621031704,-1200.0,0.00010421,2]
[420841151,1776621031714,-284.0,0.00010422,2]
[420841152,1776621031723,-103170.73576998,0.00010422,2]
[420841153,1776621031732,-801.92539945,0.00010478,2]
[420841154,1776621031741,-151.0,0.00010516,2]
[420841155,1776621031750,-500.0,0.00010516,2]
[420841156,1776621031760,-151.0,0.00010516,2]
[420841157,1776621031769,-500.0,0.00010516,2]
[420841158,1776621031779,-151.0,0.00010516,2]
[420841159,1776621031788,-500.0,0.00010516,2]
[420841160,1776621031798,-151.0,0.00010516,2]
[420841161,1776621031807,-500.0,0.00010516,2]
[420841162,1776621031816,-151.0,0.00010516,2]
[420841163,1776621031830,-500.0,0.00010516,2]
[420841164,1776621031839,-200.0,0.00010516,2]
[420841165,1776621031849,-151.0,0.00010516,2]
[420841166,1776621031858,-500.0,0.00010516,2]
[420841167,1776621031868,-151.0,0.00010516,2]
[420841168,1776621031878,-151.0,0.00010516,2]
[420841169,1776621031887,-500.0,0.00010516,2]
[420841170,1776621031896,-151.0,0.00010516,2]
[420841171,1776621031906,-500.0,0.00010516,2]
[420841172,1776621031915,-151.0,0.00010516,2]
[420841173,1776621031925,-500.0,0.00010516,2]
[420841174,1776621031935,-151.0,0.00010516,2]
[420841175,1776621031947,-395.24826756,0.00010516,2]
[420841176,1776621031956,-151.37857925,0.00010516,2]
[420841177,1776621031966,-500.0,0.00010516,2]
[420841178,1776621031976,-500.0,0.00010516,2]
[420841179,1776621031985,-500.0,0.00010516,2]
[420841180,1776621031995,-500.0,0.00010516,2]
[420841181,1776621032005,-381.2686437,0.00010516,2]
[420841182,1776621032014,-236.16329328,0.00010519,2]
[420841184,1776621032024,-500.35688171,0.00010519,2]
[420841185,1776621032033,-500.0,0.00010519,2]
[420841186,1776621032042,-500.0,0.00010519,2]
[420841187,1776621032051,-500.0,0.00010519,2]
[420841188,1776621032061,-500.0,0.00010519,2]
[420841189,1776621032070,-831.6399678,0.00010519,2]
[420841190,1776621032080,-500.0,0.00010519,2]
[420841191,1776621032090,-831.6399678,0.00010519,2]
[420841192,1776621032100,-500.0,0.00010519,2]
[420841193,1776621032110,-369.38707669,0.00010519,2]
[420841194,1776621032119,-500.0,0.00010519,2]
[420841195,1776621032128,-500.0,0.00010519,2]
[420841196,1776621032138,-831.6399678,0.00010519,2]
[420841197,1776621032147,-500.0,0.00010519,2]
[420841198,1776621032156,-500.0,0.00010519,2]
[420841199,1776621032166,-433.95222071,0.00010519,2]
[420841200,1776621032175,-345.05670159,0.00010519,2]
[420841201,1776621032184,-831.6399678,0.00010519,2]
[420841202,1776621032194,-500.0,0.00010519,2]
[420841203,1776621032203,-500.0,0.00010519,2]
[420841204,1776621032214,-831.6399678,0.00010519,2]
[420841205,1776621032223,-343.19396202,0.00010519,2]
[420841206,1776621032237,-831.6399678,0.00010519,2]
[420841207,1776621032246,-500.0,0.00010519,2]
[420841208,1776621032257,-831.6399678,0.00010519,2]
[420841209,1776621032267,-831.6399678,0.00010519,2]
[420841210,1776621032277,-500.0,0.00010519,2]
[420841211,1776621032286,-831.6399678,0.00010519,2]
[420841212,1776621032296,-831.6399678,0.00010519,2]
[420841213,1776621032306,-831.6399678,0.00010519,2]
[420841214,1776621032315,-831.6399678,0.00010519,2]
[420841215,1776621032325,-831.6399678,0.00010519,2]
[420841216,1776621032334,-831.6399678,0.00010519,2]
[420841217,1776621032345,-831.6399678,0.00010519,2]
[420841218,1776621032354,-831.6399678,0.00010519,2]
[420841219,1776621032364,-831.6399678,0.00010519,2]
[420841220,1776621032374,-831.6399678,0.00010519,2]
[420841221,1776621032383,-831.6399678,0.00010519,2]
[420841222,1776621032393,-831.6399678,0.00010519,2]
[420841223,1776621032402,-831.6399678,0.00010519,2]
[420841224,1776621032412,-831.6399678,0.00010519,2]
[420841225,1776621032421,-831.6399678,0.00010519,2]
[420841226,1776621032431,-831.6399678,0.00010519,2]
[420841227,1776621032440,-831.6399678,0.00010519,2]
[420841228,1776621032449,-831.6399678,0.00010519,2]
[420841229,1776621032458,-831.6399678,0.00010519,2]
[420841230,1776621032467,-831.6399678,0.00010519,2]
[420841231,1776621032477,-831.6399678,0.00010519,2]
[420841232,1776621032486,-831.6399678,0.00010519,2]
[420841233,1776621032495,-831.6399678,0.00010519,2]
[420841234,1776621032505,-831.6399678,0.00010519,2]
[420841235,1776621032515,-831.6399678,0.00010519,2]
[420841236,1776621032524,-831.6399678,0.00010519,2]
[420841237,1776621032534,-831.6399678,0.00010519,2]
[420841238,1776621032543,-831.6399678,0.00010519,2]
[420841239,1776621032553,-831.6399678,0.00010519,2]
[420841240,1776621032562,-831.6399678,0.00010519,2]
[420841241,1776621032572,-831.6399678,0.00010519,2]
[420841242,1776621032581,-831.6399678,0.00010519,2]
[420841243,1776621032591,-831.6399678,0.00010519,2]
[420841244,1776621032600,-831.6399678,0.00010519,2]
[420841245,1776621032610,-831.6399678,0.00010519,2]
[420841246,1776621032619,-831.6399678,0.00010519,2]
[420841247,1776621032629,-831.6399678,0.00010519,2]
[420841248,1776621032642,-831.6399678,0.00010519,2]
[420841249,1776621032652,-831.6399678,0.00010519,2]
[420841250,1776621032662,-831.6399678,0.00010519,2]
[420841251,1776621032672,-831.6399678,0.00010519,2]
[420841252,1776621032682,-831.6399678,0.00010519,2]
[420841253,1776621032691,-831.6399678,0.00010519,2]
[420841254,1776621033520,-831.6399678,0.00010519,2]
[420841255,1776621033531,-831.6399678,0.00010519,2]
[420841256,1776621033541,-831.6399678,0.00010519,2]
[420841257,1776621033550,-831.6399678,0.00010519,2]
[420841258,1776621033559,-831.6399678,0.00010519,2]
[420841259,1776621033568,-831.6399678,0.00010519,2]
[420841260,1776621033577,-831.6399678,0.00010519,2]
[420841261,1776621033586,-259.42556361,0.00010519,2]
[420841262,1776621033596,-2925.96883501,0.00010519,2]
[420841263,1776621033605,-2925.96883501,0.00010519,2]
[420841264,1776621033614,-2925.96883501,0.00010519,2]
[420841265,1776621033628,-2925.96883501,0.00010519,2]
[420841266,1776621033638,-2925.96883501,0.00010519,2]
[420841267,1776621033647,-2925.96883501,0.00010519,2]
[420841268,1776621033656,-2925.96883501,0.00010519,2]
[420841269,1776621033666,-2925.96883501,0.00010519,2]
[420841270,1776621033675,-2925.96883501,0.00010519,2]
[420841271,1776621033685,-2925.96883501,0.00010519,2]
[420841272,1776621033694,-2925.96883501,0.00010519,2]
[420841273,1776621033704,-2925.96883501,0.00010519,2]
[420841274,1776621033714,-2318.34989912,0.00010519,2]
[420841275,1776621033728,-607.61893589,0.00010519,2]
[420841276,1776621033738,-949.6536907,0.00010519,2]
[420841277,1776621033772,-1976.31514431,0.00010519,2]
[420841278,1776621033783,-2925.96883501,0.00010519,2]
[420841279,1776621033794,-2925.96883501,0.00010519,2]
[420841280,1776621033805,-2925.96883501,0.00010519,2]